bitfinex/quotes_ETHUSD_20241024
["timestamp","ask_amount","ask_price","bid_price","bid_amount"]
[1729766453220,3.95453,2528.8,2528.6,1.19480416]
[1729766453421,3.95452,2528.8,2528.6,1.19480416]
[1729766453651,3.9546,2528.7,2528.6,1.19480416]
[1729766454964,3.95446,2528.8,2528.6,1.20480416]
[1729766455124,3.95446,2528.8,2528.6,1.19480416]
[1729766455319,3.95446,2528.8,2528.6,1.20480416]
[1729766455534,3.9546,2528.7,2528.6,1.19480416]
[1729766455728,4.78674453,2528.7,2528.6,1.19480416]
[1729766456134,4.78674453,2528.7,2528.6,0.20690416]
[1729766456352,3.95488,2528.6,2528.4,0.9881]
[1729766456625,3.95488,2528.6,2528.4,0.9781]
[1729766457636,7.90973,2528.6,2528.4,0.9781]
[1729766457835,0.87418745,2528.5,2528.4,0.9781]
[1729766458156,3.95484,2528.6,2528.4,0.9881]
[1729766458745,7.90909,2528.8,2528.4,0.9781]
[1729766459066,7.90909,2528.8,2528.4,0.9881]
[1729766459268,7.90909,2528.8,2528.5,0.20640803]
[1729766459573,3.95451,2528.8,2528.5,0.20640803]
[1729766459730,4.39131953,2528.7,2528.5,0.20640803]
[1729766460140,0.43668953,2528.7,2528.5,0.20640803]
[1729766460470,3.95451,2528.8,2528.5,0.20640803]
[1729766461560,3.95462,2528.7,2528.5,0.20640803]
[1729766461765,7.90908,2528.8,2528.5,0.20640803]
[1729766461933,3.95451,2528.8,2528.5,0.20640803]
[1729766463936,3.95466,2528.7,2528.5,0.20640803]
[1729766464137,0.790917,2528.6,2528.5,0.20640803]
[1729766464366,3.95424,2529.0,2528.5,0.20640803]
[1729766464579,3.95429,2528.9,2528.7,1.0256]
[1729766464877,4.57344831,2528.8,2528.7,1.0256]
[1729766465081,4.57344831,2528.8,2528.5,1.0256]
[1729766465965,0.61900831,2528.8,2528.7,1.0511]
[1729766469351,0.61900831,2528.8,2528.4,3.96498]
[1729766469352,3.95463,2528.7,2528.5,0.9689]
[1729766470239,3.95475,2528.6,2528.5,0.9689]
[1729766471742,3.95462,2528.7,2528.5,0.9689]
[1729766472976,3.95475,2528.6,2528.5,0.9689]
[1729766473176,3.95462,2528.7,2528.5,0.9689]
[1729766473377,0.45736283,2528.6,2528.5,0.9689]
[1729766474338,0.45736283,2528.6,2528.5,1.17473968]
[1729766474939,3.95461,2528.7,2528.5,1.17473968]
[1729766475171,0.61900831,2528.8,2528.7,1.0053]
[1729766475641,0.61900831,2528.8,2528.7,1.21095215]
[1729766475841,4.57344831,2528.8,2528.7,1.21095215]
[1729766476469,4.57344831,2528.8,2528.7,1.0053]
[1729766476669,1.47178214,2528.8,2528.7,1.21095215]
[1729766477798,0.61900831,2528.8,2528.7,1.21095215]
[1729766480300,4.57344831,2528.8,2528.7,1.21095215]
[1729766481178,0.61900831,2528.8,2528.7,1.21095215]
[1729766485072,4.57344831,2528.8,2528.7,1.21095215]
[1729766486505,4.57344831,2528.8,2528.7,0.20565215]
[1729766486667,5.42622214,2528.8,2528.7,0.20565215]
[1729766486872,5.42622214,2528.8,2528.4,0.01]
[1729766486873,3.95482,2528.6,2528.4,0.01]
[1729766487305,3.95482,2528.6,2528.5,0.20567741]
[1729766488272,4.36650389,2528.6,2528.5,0.20567741]
[1729766488711,5.67846228,2528.6,2528.5,0.20567741]
[1729766488893,3.95493,2528.5,2528.3,1.0105]
[1729766489096,3.95507,2528.4,2528.3,1.0105]
[1729766489490,3.95507,2528.4,2528.3,1.21636496]
[1729766492412,5.06526444,2528.6,2528.3,1.21636496]
[1729766492589,3.95498,2528.5,2528.3,1.21636496]
[1729766493488,3.95468,2528.7,2528.4,0.01]
[1729766493724,3.95437,2528.9,2528.6,0.01]
[1729766494027,3.95437,2528.9,2528.7,0.9846]
[1729766494395,3.95437,2528.9,2528.8,0.20550432]
[1729766495924,3.95381,2529.2,2528.8,0.20550432]
[1729766497025,3.95413,2529.0,2528.8,0.20550432]
[1729766498394,7.90834,2529.0,2528.8,0.20550432]
[1729766498996,3.95413,2529.0,2528.8,0.20550432]
[1729766500230,7.90838,2529.0,2528.8,0.20550432]
[1729766500601,3.95428,2528.9,2528.8,0.20550432]
[1729766500797,4.745121,2528.9,2528.8,0.20550432]
[1729766501934,5.810021,2528.9,2528.8,0.20550432]
[1729766502228,3.95485,2528.6,2528.3,1.0427]
[1729766502421,3.95497,2528.5,2528.3,1.0327]
[1729766502619,3.95497,2528.5,2528.4,0.20580905]
[1729766505228,8.305215,2528.6,2528.4,0.20580905]
[1729766505432,4.350335,2528.6,2528.4,0.20580905]
[1729766505601,8.305215,2528.6,2528.4,0.20580905]
[1729766507843,3.95491,2528.5,2528.4,0.20580905]
[1729766508029,4.7854345,2528.5,2528.4,0.20580905]
[1729766508240,4.7854345,2528.5,2528.1,1.0555]
[1729766508551,3.95513,2528.4,2528.1,1.0555]
[1729766508746,3.95522,2528.3,2528.2,0.20599662]
[1729766509261,4.93912,2528.3,2528.2,0.20599662]
[1729766509413,5.91159745,2528.3,2528.2,0.20599662]
[1729766509752,5.91159745,2528.3,2527.7,1.0455]
[1729766509753,3.95592,2527.9,2527.7,1.0355]
[1729766510649,3.956,2527.8,2527.6,0.01]
[1729766512043,3.95616,2527.7,2527.5,1.0455]
[1729766513112,3.95632,2527.6,2527.4,10.1110101]
[1729766513313,4.747552,2527.6,2527.4,10.1110101]
[1729766514871,8.704002,2527.6,2527.4,10.1110101]
[1729766515057,3.95647,2527.5,2527.4,10.1010101]
[1729766516165,3.95647,2527.5,2527.4,10.30793043]
[1729766516369,7.9323622,2527.5,2527.4,10.30793043]
[1729766516539,8.9414622,2527.5,2527.4,10.30793043]
[1729766518554,9.35334595,2527.5,2527.4,10.30793043]
[1729766518947,9.35334595,2527.5,2527.4,10.1010101]
[1729766519295,9.35334595,2527.5,2527.4,10.30793043]
[1729766522175,8.9414622,2527.5,2527.4,10.30793043]
[1729766522786,7.9323622,2527.5,2527.4,10.30793043]
[1729766523372,8.3442365,2527.5,2527.4,10.1010101]
[1729766523692,8.3442365,2527.5,2527.4,10.30920241]
[1729766527507,5.3442365,2527.5,2527.4,10.30920241]
[1729766529281,12.26770798,2527.5,2527.4,10.30920241]
[1729766531885,12.26770798,2527.5,2527.4,9.40186172]
[1729766531886,12.81770798,2527.5,2527.4,9.40186172]
[1729766533726,21.20770798,2527.5,2527.4,9.40186172]
[1729766533879,21.20770798,2527.5,2527.4,8.85097139]
[1729766534305,20.9022706,2527.5,2527.4,8.85097139]
[1729766534719,20.9022706,2527.5,2527.4,8.33235978]
[1729766535320,25.0682706,2527.5,2527.4,8.33235978]
[1729766535539,20.9022706,2527.5,2527.4,8.33235978]
[1729766535862,20.9022706,2527.5,2527.4,8.12416747]
[1729766536352,21.21044345,2527.5,2527.4,8.12416747]
[1729766544228,21.21044345,2527.5,2527.4,4.16752747]
[1729766549021,3.95773,2526.7,2526.6,11.1291101]
[1729766549511,3.95773,2526.7,2526.6,11.33868176]
[1729766549736,4.3699964,2526.7,2526.6,11.33868176]
[1729766550929,7.30610335,2526.7,2526.6,11.33868176]
[1729766556446,7.92564121,2526.7,2526.6,11.33868176]
[1729766556625,9.11396533,2526.7,2526.6,11.33868176]
[1729766556821,9.11396533,2526.7,2526.6,10.31058176]
[1729766557027,12.11396533,2526.7,2526.6,10.31058176]
[1729766557744,13.12956533,2526.7,2526.6,10.31058176]
[1729766558454,12.8226922,2526.7,2526.6,10.31058176]
[1729766560866,12.8226922,2526.7,2526.6,11.30258176]
[1729766560867,0.4122664,2526.7,2526.6,11.30258176]
[1729766561026,5.68461331,2526.7,2526.6,11.30258176]
[1729766561227,1.03187416,2526.7,2526.6,11.30258176]
[1729766561428,1.31461691,2526.8,2526.6,11.31258176]
[1729766561655,1.31461691,2526.8,2526.7,0.992]
[1729766562030,1.31461691,2526.8,2526.7,1.20182454]
[1729766562362,3.95733,2527.0,2526.7,1.20182454]
[1729766564066,3.95757,2526.8,2526.7,1.20182454]
[1729766564236,6.8929688,2526.8,2526.7,1.20182454]
[1729766564439,3.95742,2526.9,2526.7,1.20182454]
[1729766564770,10.8501088,2527.0,2526.7,1.20182454]
[1729766565864,3.95749,2526.9,2526.7,1.20182454]
[1729766570037,3.95757,2526.8,2526.7,1.20182454]
[1729766571835,8.04261588,2526.8,2526.7,0.20982454]
[1729766572063,8.45473601,2526.8,2526.7,0.20982454]
[1729766572268,11.39013481,2526.8,2526.7,0.20982454]
[1729766575367,12.37813481,2526.8,2526.7,0.20982454]
[1729766575779,12.92813481,2526.8,2526.7,0.20982454]
[1729766576067,12.37813481,2526.8,2526.7,0.20982454]
[1729766580981,11.39013481,2526.8,2526.7,0.20982454]
[1729766581651,8.39013481,2526.8,2526.7,1.23662454]
[1729766581845,7.30508893,2526.8,2526.7,1.23662454]
[1729766582281,5.68366938,2526.8,2526.7,1.23662454]
[1729766582458,5.68366938,2526.8,2526.7,0.20982454]
[1729766582655,4.36969013,2526.8,2526.7,0.20982454]
[1729766583585,0.41212013,2526.8,2526.7,1.33092454]
[1729766583889,0.41212013,2526.8,2526.7,1.34092454]
[1729766584046,3.95745,2526.9,2526.7,1.34092454]
[1729766585082,3.95735,2527.0,2526.7,1.34092454]
[1729766585293,3.95735,2527.0,2526.9,1.1002]
[1729766585760,3.95735,2527.0,2526.9,1.30979881]
[1729766590774,3.9758922,2527.5,2526.9,1.30979881]
[1729766590987,3.95688,2527.3,2526.9,1.31979881]
[1729766591398,3.95699,2527.2,2526.9,1.31979881]
[1729766591598,3.95688,2527.3,2526.9,1.31979881]
[1729766591901,3.9572,2527.1,2526.9,1.31979881]
[1729766594306,3.95691,2527.3,2526.9,1.31979881]
[1729766594632,3.95694,2527.2,2526.9,1.31979881]
[1729766597089,0.41216337,2527.4,2526.9,1.31979881]
[1729766597403,3.95711,2527.1,2526.9,1.31979881]
[1729766599399,3.95726,2527.0,2526.9,1.31979881]
[1729766601375,3.95711,2527.1,2526.9,1.31979881]
[1729766604108,7.91429,2527.1,2526.9,1.31979881]
[1729766604307,3.95711,2527.1,2526.9,1.31979881]
[1729766604508,3.95726,2527.0,2526.9,0.21959881]
[1729766605675,3.95688,2527.3,2526.9,1.26919881]
[1729766605872,3.95719,2527.1,2526.9,1.26919881]
[1729766606071,3.9569,2527.3,2526.9,1.26919881]
[1729766606312,3.9569,2527.3,2526.9,2.58243539]
[1729766607489,3.95695,2527.2,2526.9,2.58243539]
[1729766607814,3.95695,2527.2,2526.9,1.26919881]
[1729766608193,3.95695,2527.2,2526.9,2.58243539]
[1729766608389,3.95695,2527.2,2526.9,1.26919881]
[1729766609130,4.78955134,2527.2,2526.9,1.26919881]
[1729766611627,3.95726,2527.0,2526.9,1.26919881]
[1729766613509,3.95726,2527.0,2526.9,0.21959881]
[1729766614730,3.95726,2527.0,2526.9,0.20959881]
[1729766615025,5.68268344,2527.0,2526.9,0.20959881]
[1729766615229,3.95773,2526.7,2526.6,10.1010101]
[1729766621910,4.57724819,2526.7,2526.6,10.1010101]
[1729766624349,4.57724819,2526.7,2526.6,10.31041924]
[1729766630624,4.98948341,2526.7,2526.6,10.31041924]
[1729766630825,6.12790241,2526.7,2526.6,10.31041924]
[1729766634629,5.71566719,2526.7,2526.6,10.31041924]
[1729766634965,4.57724819,2526.7,2526.6,10.31041924]
[1729766639566,9.91188477,2526.7,2526.6,10.31041924]
[1729766639860,10.32413743,2526.7,2526.6,10.31041924]
[1729766640961,9.01090085,2526.7,2526.6,10.31041924]
[1729766643543,10.32413743,2526.7,2526.6,10.31041924]
[1729766643744,10.43907159,2526.7,2526.6,10.31041924]
[1729766643955,11.75230817,2526.7,2526.6,10.31041924]
[1729766644475,11.75230817,2526.7,2526.6,10.1010101]
[1729766644965,11.75230817,2526.7,2526.6,10.31043344]
[1729766650665,10.43907159,2526.7,2526.6,10.31043344]
[1729766650864,11.75230817,2526.7,2526.6,10.31043344]
[1729766651440,10.43907159,2526.7,2526.6,10.31043344]
[1729766652172,9.41767159,2526.7,2526.6,10.31043344]
[1729766656772,7.98950085,2526.7,2526.6,10.31043344]
[1729766662941,4.98950085,2526.7,2526.6,10.31043344]
[1729766664584,4.57724819,2526.7,2526.6,10.31043344]
[1729766665359,4.98945629,2526.7,2526.6,10.31043344]
[1729766665974,6.30269287,2526.7,2526.6,10.31043344]
[1729766666198,8.44201916,2526.7,2526.6,10.31043344]
[1729766668095,8.44201916,2526.7,2526.6,10.1010101]
[1729766668592,8.44201916,2526.7,2526.6,10.31057429]
[1729766671897,6.01548258,2526.7,2526.6,10.31057429]
[1729766672196,4.98945629,2526.7,2526.6,11.29857429]
[1729766679537,4.98945629,2526.7,2526.6,10.31057429]
[1729766681106,4.57724819,2526.7,2526.6,10.31057429]
[1729766682648,4.57724819,2526.7,2526.6,11.39427429]
[1729766683947,3.95773,2526.7,2526.6,11.39427429]
[1729766689215,4.88058366,2526.7,2526.6,10.31057429]
[1729766692362,3.95773,2526.7,2526.6,10.31057429]
[1729766700163,4.36993973,2526.7,2526.6,10.31057429]
[1729766700929,0.41220973,2526.7,2526.6,11.33657429]
[1729766701123,3.95744,2526.9,2526.6,11.33657429]
[1729766701428,3.95743,2526.9,2526.6,11.33657429]
[1729766702048,3.95743,2526.9,2526.6,11.1270101]
[1729766702267,3.95743,2526.9,2526.7,0.20266478]
[1729766702426,3.95757,2526.8,2526.7,0.20266478]
[1729766702833,3.95757,2526.8,2526.7,0.21266478]
[1729766703571,3.95757,2526.8,2526.7,0.20266478]
[1729766703746,4.98634366,2526.8,2526.7,0.20266478]
[1729766704264,5.39854715,2526.8,2526.7,0.20266478]
[1729766707064,6.71178373,2526.8,2526.7,0.20266478]
[1729766707938,5.39854715,2526.8,2526.7,0.20266478]
[1729766708133,4.36977349,2526.8,2526.7,0.20266478]
[1729766708351,0.41220349,2526.8,2526.7,2.60070136]
[1729766708575,4.57665427,2527.1,2526.9,0.01]
[1729766708786,3.95726,2527.0,2526.9,1.0748]
[1729766709270,4.9887254,2527.1,2526.9,1.0748]
[1729766709472,4.9887254,2527.1,2526.9,1.0848]
[1729766710397,4.9887254,2527.1,2526.9,3.04152772]
[1729766710398,1.0316154,2527.1,2526.9,3.04152772]
[1729766710686,0.61954427,2527.1,2526.9,1.80743084]
[1729766711557,0.61954427,2527.1,2527.0,1.0517]
[1729766714491,0.61954427,2527.1,2527.0,1.25383933]
[1729766715068,3.95699,2527.2,2527.0,1.25383933]
[1729766715988,3.9571,2527.1,2527.0,1.25383933]
[1729766716317,3.9571,2527.1,2527.0,0.20213933]
[1729766716318,6.19306924,2527.1,2527.0,0.20213933]
[1729766716870,4.87983266,2527.1,2527.0,0.20213933]
[1729766717073,3.95726,2527.0,2526.9,0.01]
[1729766718307,3.95726,2527.0,2526.9,1.0312]
[1729766718676,3.95726,2527.0,2526.9,1.23331944]
[1729766719188,3.95712,2527.1,2527.0,0.01]
[1729766719574,3.95712,2527.1,2527.0,0.21209057]
[1729766720077,8.26999658,2527.4,2527.0,0.21209057]
[1729766720078,3.95704,2527.2,2527.0,0.21209057]
[1729766721277,3.9571,2527.1,2527.0,0.21209057]
[1729766727422,3.9571,2527.1,2527.0,1.24599057]
[1729766732103,3.9571,2527.1,2527.0,0.20209057]
[1729766732304,6.06174358,2527.1,2527.0,0.20209057]
[1729766732599,6.06174358,2527.1,2526.9,0.01]
[1729766732600,3.95726,2527.0,2526.9,0.01]
[1729766737027,4.36923923,2527.1,2526.9,0.02]
[1729766737328,3.95726,2527.0,2526.9,0.02]
[1729766737537,3.95726,2527.0,2526.9,0.01]
[1729766739327,4.36924923,2527.1,2527.0,0.01]
[1729766739540,4.36924923,2527.1,2527.0,1.0616]
[1729766742125,4.36924923,2527.1,2527.0,0.01]
[1729766742310,3.95757,2526.8,2526.7,0.01]
[1729766742513,4.94247,2526.8,2526.7,0.01]
[1729766743124,5.35459336,2526.8,2526.7,0.01]
[1729766743321,4.36969336,2526.8,2526.7,0.02]
[1729766744342,4.36969336,2526.8,2526.7,0.22237223]
[1729766746816,0.41212336,2526.8,2526.7,0.22237223]
[1729766747140,3.95733,2527.0,2526.7,3.8707207]
[1729766747324,3.95733,2527.0,2526.7,2.55748412]
[1729766748547,3.95718,2527.1,2526.9,0.01]
[1729766748747,3.95718,2527.1,2526.9,0.02]
[1729766748902,3.95718,2527.1,2527.0,0.20218808]
[1729766749103,3.95718,2527.1,2527.0,1.23248808]
[1729766751243,3.95718,2527.1,2527.0,0.20218808]
[1729766770782,3.95651,2527.5,2527.3,0.02]
[1729766770930,4.575748,2527.6,2527.5,0.01]
[1729766771274,4.575748,2527.6,2527.5,0.02]
[1729766771478,4.575748,2527.6,2527.5,0.22150748]
[1729766771628,0.619418,2527.6,2527.5,1.53474406]
[1729766772130,0.619418,2527.6,2527.5,0.22150748]
[1729766772548,0.619418,2527.6,2527.5,1.53474406]
[1729766776165,0.619418,2527.6,2527.5,0.22150748]
[1729766776379,0.619418,2527.6,2527.5,1.53474406]
[1729766776736,0.619418,2527.6,2527.5,0.22150748]
[1729766777060,0.619418,2527.6,2527.5,6.45395072]
[1729766777256,0.619418,2527.6,2527.5,6.44395072]
[1729766777570,0.619418,2527.6,2527.5,6.45395072]
[1729766777965,0.619418,2527.6,2527.5,6.44395072]
[1729766778393,0.619418,2527.6,2527.5,0.22150748]
[1729766778597,4.575738,2527.6,2527.5,0.22150748]
[1729766778955,0.619418,2527.6,2527.5,0.22150748]
[1729766780073,0.619418,2527.6,2527.5,1.53474406]
[1729766780272,0.619418,2527.6,2527.5,0.22150748]
[1729766780866,0.619418,2527.6,2527.5,1.53474406]
[1729766781202,0.619418,2527.6,2527.5,2.08388547]
[1729766781893,0.619418,2527.6,2527.5,0.22150748]
[1729766782901,4.575738,2527.6,2527.5,0.22150748]
[1729766783060,5.603038,2527.6,2527.5,0.02]
[1729766783265,1.646718,2527.6,2527.5,0.22071145]
[1729766785593,5.603038,2527.6,2527.5,0.22071145]
[1729766788387,6.5589598,2527.6,2527.5,0.22071145]
[1729766788588,6.5589598,2527.6,2527.5,0.20071145]
[1729766788979,3.9565,2527.5,2527.3,1.33323658]
[1729766789368,3.9565,2527.5,2527.4,0.20087026]
[1729766791863,3.9565,2527.5,2527.1,2.39893658]
[1729766791864,3.95694,2527.2,2527.1,0.01]
[1729766792066,1.0501,2527.2,2526.9,0.02]
[1729766792394,3.9571,2527.1,2526.9,1.33323658]
[1729766792579,3.95726,2527.0,2526.9,0.02]
[1729766792965,1.31323658,2527.1,2526.7,0.02]
[1729766793164,3.95757,2526.8,2526.7,0.02]
[1729766802526,5.00313,2526.7,2526.6,10.1010101]
[1729766802675,9.31636658,2526.7,2526.6,10.1010101]
[1729766803101,8.00313,2526.7,2526.6,10.1010101]
[1729766803328,6.95773,2526.7,2526.6,10.1110101]
[1729766803618,7.91499,2526.9,2526.6,11.63663159]
[1729766803983,4.36976563,2526.9,2526.6,10.32339501]
[1729766804384,8.32727563,2526.9,2526.6,11.63663159]
[1729766804587,4.36976563,2526.9,2526.6,11.63663159]
[1729766804909,3.95757,2526.8,2526.6,11.63663159]
[1729766805285,3.95757,2526.8,2526.6,10.32339501]
[1729766805484,3.95757,2526.8,2526.6,11.63663159]
[1729766806118,4.36976563,2526.9,2526.6,10.32339501]
[1729766806295,3.95773,2526.7,2526.6,10.32339501]
[1729766806486,3.95773,2526.7,2526.6,11.63663159]
[1729766806888,3.95773,2526.7,2526.6,10.32339501]
[1729766807306,3.95773,2526.7,2526.6,11.63663159]
[1729766807821,0.41228563,2526.9,2526.8,0.01]
[1729766807989,3.95734,2527.0,2526.8,1.33323658]
[1729766808191,3.95734,2527.0,2526.8,1.53547702]
[1729766808413,3.61936714,2527.2,2526.8,0.22224044]
[1729766808414,3.0,2527.1,2526.8,0.22224044]
[1729766808614,0.61936714,2527.2,2526.8,0.22224044]
[1729766808615,4.36967798,2527.0,2526.8,0.22224044]
[1729766810235,3.95741,2526.9,2526.8,0.22224044]
[1729766812628,3.95741,2526.9,2526.8,0.21224044]
[1729766814022,4.94741,2526.9,2526.8,0.20224044]
[1729766814187,6.26064658,2526.9,2526.8,0.20224044]
[1729766814387,3.95773,2526.7,2526.6,10.1110101]
[1729766814822,3.95773,2526.7,2526.6,10.1210101]
[1729766816212,5.37532766,2526.7,2526.6,10.1210101]
[1729766817445,5.37532766,2526.7,2526.6,10.1110101]
[1729766817934,5.37532766,2526.7,2526.6,10.1210101]
[1729766819331,5.37532766,2526.7,2526.6,10.323395]
[1729766822437,5.37418657,2526.7,2526.6,10.323395]
[1729766823233,5.37418657,2526.7,2526.6,10.313395]
[1729766825098,5.37418657,2526.7,2526.6,10.303395]
[1729766825703,5.78608183,2526.7,2526.6,10.303395]
[1729766828054,5.78608183,2526.7,2526.6,10.313395]
[1729766828247,4.36848417,2526.7,2526.6,10.313395]
[1729766829926,4.36848417,2526.7,2526.6,11.368595]
[1729766831354,3.95658891,2526.7,2526.6,11.368595]
[1729766836923,3.95658891,2526.7,2526.6,10.313395]
[1729766839836,4.57643714,2527.2,2527.1,0.01]
[1729766840200,0.61936714,2527.2,2527.1,1.1988529]
[1729766840362,0.61936714,2527.2,2527.1,5.1559529]
[1729766840673,0.61936714,2527.2,2527.1,6.07619238]
[1729766840976,0.61936714,2527.2,2527.1,7.38942896]
[1729766841179,3.95617,2527.7,2527.2,3.95684]
[1729766841510,3.95617,2527.7,2527.6,1.0537]
[1729766841973,4.57546768,2527.7,2527.6,1.24845654]
[1729766842172,4.57546768,2527.7,2527.6,1.25845654]
[1729766849688,4.57546768,2527.7,2527.6,0.20475654]
[1729766850650,4.98763601,2527.7,2527.6,0.20475654]
[1729766858973,7.32656185,2527.7,2527.6,0.19475654]
[1729766859174,7.32656185,2527.7,2527.6,0.01]
[1729766859375,3.37039185,2527.7,2527.4,0.02]
[1729766859609,7.32655185,2527.7,2527.6,0.19385216]
[1729766859908,3.95647,2527.5,2527.4,0.02]
[1729766860265,3.95647,2527.5,2527.4,0.21403985]
[1729766860469,3.95647,2527.5,2527.4,0.02]
[1729766860772,3.95647,2527.5,2527.4,0.21403985]
[1729766861989,3.95647,2527.5,2527.4,0.02]
[1729766862187,3.95647,2527.5,2527.4,0.21403985]
[1729766862407,3.95647,2527.5,2527.4,0.02]
[1729766862563,3.95632,2527.6,2527.4,0.02]
[1729766862564,3.95632,2527.6,2527.4,1.30273985]
[1729766862765,3.95632,2527.6,2527.4,1.1087]
[1729766862974,3.95632,2527.6,2527.5,0.193946]
[1729766865880,7.28637784,2527.6,2527.5,0.193946]
[1729766866395,3.95647,2527.5,2527.4,0.01]
[1729766866580,8.26970658,2527.5,2527.4,0.01]
[1729766866775,6.95647,2527.5,2527.4,0.01]
[1729766866976,8.26970658,2527.5,2527.4,0.01]
[1729766867176,10.19275696,2527.5,2527.4,0.01]
[1729766867603,8.87952038,2527.5,2527.4,0.01]
[1729766868170,10.19275696,2527.5,2527.4,0.01]
[1729766868376,8.87952038,2527.5,2527.4,0.01]
[1729766868712,6.23628696,2527.5,2527.2,0.02]
[1729766868931,6.23628696,2527.5,2527.2,0.01]
[1729766868932,3.95679,2527.3,2527.2,0.01]
[1729766879424,3.95679,2527.3,2527.2,0.20430337]
[1729766885092,3.95679,2527.3,2527.2,0.19430337]
[1729766885093,9.27692658,2527.3,2527.2,0.19430337]
[1729766885288,9.68941837,2527.3,2527.2,0.19430337]
[1729766885496,9.68941837,2527.3,2526.7,0.02]
[1729766885497,3.95757,2526.8,2526.7,0.02]
[1729766892350,3.95757,2526.8,2526.6,10.1010101]
[1729766892351,5.27080658,2526.8,2526.6,10.1010101]
[1729766892523,5.27096658,2526.7,2526.6,10.1110101]
[1729766892727,3.95773,2526.7,2526.6,10.1110101]
[1729766892936,5.27632766,2526.7,2526.6,10.1110101]
[1729766893134,7.64846424,2526.7,2526.6,10.1110101]
[1729766893527,6.33522766,2526.7,2526.6,10.1110101]
[1729766894114,7.64846424,2526.7,2526.6,10.1110101]
[1729766894315,6.33522766,2526.7,2526.6,10.30659705]
[1729766894528,7.64846424,2526.7,2526.6,10.29659705]
[1729766894710,6.33522766,2526.7,2526.6,10.29659705]
[1729766894910,7.64846424,2526.7,2526.6,10.29659705]
[1729766895158,7.64846424,2526.7,2526.6,10.30659705]
[1729766895548,8.0610676,2526.7,2526.6,10.30659705]
[1729766896056,6.74783102,2526.7,2526.6,10.30659705]
[1729766897173,8.0610676,2526.7,2526.6,10.30659705]
[1729766897468,6.74783102,2526.7,2526.6,10.30659705]
[1729766897834,6.74783102,2526.7,2526.6,10.29659705]
[1729766897835,8.0610676,2526.7,2526.6,10.29659705]
[1729766898355,11.6110676,2526.7,2526.6,10.29659705]
[1729766902253,12.23071565,2526.7,2526.6,10.29659705]
[1729766903362,12.23071565,2526.7,2526.6,3.66320857]
[1729766903363,13.54395223,2526.7,2526.6,3.66320857]
[1729766903536,13.54395223,2526.7,2526.6,8.57e-06]
[1729766903737,3.95867,2526.1,2526.0,0.02]
[1729766903954,6.06362758,2526.1,2526.0,0.02]
[1729766904176,9.06362758,2526.1,2526.0,0.20018933]
[1729766904364,9.06362758,2526.1,2526.0,0.01]
[1729766905840,9.47615016,2526.1,2526.0,0.01]
[1729766906278,10.51855016,2526.1,2526.0,0.01]
[1729766907065,9.84831658,2525.9,2525.8,10.1010101]
[1729766907273,9.84831658,2525.9,2525.8,10.29138736]
[1729766911602,6.95898,2525.9,2525.8,10.29138736]
[1729766911750,4.37121258,2526.1,2526.0,0.01]
[1729766912078,4.37121258,2526.1,2526.0,0.20089397]
[1729766912687,5.68444916,2526.1,2526.0,0.19089397]
[1729766913699,5.68444916,2526.1,2525.8,10.1210101]
[1729766913700,3.95898,2525.9,2525.8,10.1210101]
[1729766915394,4.37119258,2526.1,2526.0,0.01]
[1729766915584,4.37119258,2526.1,2526.0,0.9932]
[1729766916564,5.68442916,2526.1,2526.0,0.9932]
[1729766916882,5.68442916,2526.1,2525.8,11.1438101]
[1729766917082,3.95882,2526.0,2525.8,11.1438101]
[1729766917290,3.95882,2526.0,2525.8,11.1538101]
[1729766917960,3.95898,2525.9,2525.8,11.1538101]
[1729766918402,6.2365725,2525.9,2525.8,10.1010101]
[1729766919799,10.8029725,2525.9,2525.8,10.1010101]
[1729766924500,10.8029725,2525.9,2525.8,10.29206492]
[1729766927480,19.1929725,2525.9,2525.8,10.29206492]
[1729766927681,19.1929725,2525.9,2525.8,10.1010101]
[1729766927898,19.1929725,2525.9,2525.8,10.29228179]
[1729766932432,19.1929725,2525.9,2525.8,8.31271179]
[1729766932734,19.1929725,2525.9,2525.8,0.39443179]
[1729766933225,19.1929725,2525.9,2525.8,0.2031601]
[1729766933432,19.1929725,2525.9,2525.8,1e-07]
[1729766934029,20.50620908,2525.9,2525.8,1e-07]
[1729766934830,19.1929725,2525.9,2525.8,1e-07]
[1729766941341,20.50620908,2525.9,2525.8,1e-07]
[1729766941849,21.52656387,2525.9,2525.8,1e-07]
[1729766942309,23.39581036,2525.9,2525.8,1e-07]
[1729766942966,1.0994,2525.7,2525.0,10.1010101]
[1729766943133,8.05963,2525.1,2525.0,10.1010101]
[1729766943328,9.37286658,2525.1,2525.0,10.1010101]
[1729766943530,9.78503531,2525.1,2525.0,10.1010101]
[1729766944263,10.33503531,2525.1,2525.0,10.1010101]
[1729766944418,11.76454984,2525.1,2525.0,10.1010101]
[1729766948149,13.07348642,2525.1,2525.0,7.8664476]
[1729766948447,11.76024984,2525.1,2525.0,7.8664476]
[1729766949165,11.76024984,2525.1,2525.0,8.05969191]
[1729766953289,6.96149,2524.3,2524.2,10.1010101]
[1729766953971,7.37372638,2524.3,2524.2,10.1010101]
[1729766954338,7.37372638,2524.3,2524.2,10.28208964]
[1729766955544,8.68696296,2524.3,2524.2,10.28208964]
[1729766955769,7.37372638,2524.3,2524.2,10.28208964]
[1729766958242,8.68696296,2524.3,2524.2,10.28208964]
[1729766959267,7.37372638,2524.3,2524.2,10.28208964]
[1729766961060,7.37372638,2524.3,2524.2,11.32978964]
[1729766961468,4.37372638,2524.3,2524.2,11.34978964]
[1729766961779,3.96149,2524.3,2524.2,11.34978964]
[1729766962448,4.58162215,2524.3,2524.2,11.34978964]
[1729766963290,4.58162215,2524.3,2524.2,11.90742449]
[1729766963953,0.62013215,2524.3,2524.2,13.22066107]
[1729766965495,0.62013215,2524.3,2524.2,17.18231107]
[1729766967113,0.62013215,2524.3,2524.2,13.22066107]
[1729766968571,0.62013215,2524.3,2524.2,17.18231107]
[1729766973670,0.62013215,2524.3,2524.2,15.86907449]
[1729766973869,0.62013215,2524.3,2524.2,17.18231107]
[1729766979194,0.62013215,2524.3,2524.2,11.90742449]
[1729766979383,0.62013215,2524.3,2524.2,12.66302622]
[1729766981920,0.62013215,2524.3,2524.2,16.62467622]
[1729766982284,0.62013215,2524.3,2524.2,12.66302622]
[1729766984310,0.62013215,2524.3,2524.2,16.62467622]
[1729766984583,0.62013215,2524.3,2524.2,12.66302622]
[1729766984908,0.62013215,2524.3,2524.2,16.62467622]
[1729766985221,0.62013215,2524.3,2524.2,18.28814984]